Cogmind - Beta 13 @@@ ROGUE MODE // 2024.04.09 @ 16:51:36 Player: Arc Result: Destroyed by S-10 Pest with Light Assault Rifle Performance ------------- Evolutions (0) 0 Regions Visited (1) 200 Robots Destroyed (20) 100 Value Destroyed (461) 461 Prototype IDs (2) 40 Alien Tech Used (0) 0 Bonus (0) 0 TOTAL SCORE: 801 Bonus ------- None Cogmind --------- Core Integrity 0/250 Matter 127/300 Energy 88/100 System Corruption 3% Temperature Cool (0) Movement Core (250) Ox4 Location -10/Materials Parts ------- > --- POWER (1) -------- (None) > --- PROPULSION (2) --- (None) > --- UTILITY (2) ------ Medium Storage Unit > --- WEAPON (2) ------- Assault Rifle Assault Rifle > --- INVENTORY (10) --- Improved Heat Sink Sensor Array Light Armor Plating Medium Armor Plating Mini Grenade Launcher Mini Grenade Launcher Mining Laser Peak State ------------ > --- POWER ------------ Light Nuclear Core > --- PROPULSION ------- Light Treads Light Treads > --- UTILITY ---------- Medium Storage Unit Medium Armor Plating > --- WEAPON ----------- Assault Rifle Light Cannon > --- INVENTORY -------- Ion Engine Light Ion Engine Sensor Array Medium Armor Plating Tractor Beam Assault Rifle Assault Rifle Light Assault Rifle Mini Grenade Launcher Mini Grenade Launcher [Rating: 11] Favorites ----------- Power Ion Engine Engine Ion Engine Power Core Light Nuclear Core Propulsion Light Treads Treads Light Treads Utility Medium Storage Unit Device Tractor Beam Storage Medium Storage Unit Protection Medium Armor Plating Weapon Light Cannon Energy Gun Medium Laser Ballistic Gun Assault Rifle Ballistic Cannon Light Cannon Special Weapon Mining Laser Build | -11 -10 ------- Run | Yrd Mat Slots Evolved . | . . Power . | . . Propulsion . | . . Utility . | . . Weapon . | . . Parts Attached 22 | 6 16 Power 4 | 1 3 Engine 3 | 1 2 Core 1 | . 1 Reactor . | . . Propulsion 4 | 2 2 Treads 4 | 2 2 Leg . | . . Wheel . | . . Hover . | . . Flight . | . . Utility 5 | 2 3 Device 2 | 1 1 Storage 2 | 1 1 Processor . | . . Hackware . | . . Protection 1 | . 1 Artifact . | . . Weapon 9 | 1 8 Energy Gun 1 | 1 . Energy Cannon . | . . Ballistic Gun 4 | . 4 Ballistic Cannon 3 | . 3 Launcher . | . . Special Weapon 1 | . 1 Impact Weapon . | . . Slashing Weapon . | . . Piercing Weapon . | . . Special Melee Weapon . | . . Unidentified Prototypes . | . . Parts Lost 7 | . 7 Power 2 | . 2 Propulsion 2 | . 2 Utility 1 | . 1 Weapon 2 | . 2 Highest Loss Streak 6 | . 6 To Critical Strikes . | . . Average Slot Usage (%) 95 | . 95 Engine 8 | . 8 Core 5 | . 5 Treads 26 | . 26 Device 4 | . 4 Storage 14 | . 14 Protection 8 | . 8 Ballistic Gun 13 | . 13 Ballistic Cannon 12 | . 12 Naked Turns . | . . Heaviest Build 27 | 13 27 Greatest Support 40 | 40 40 Greatest Overweight (x) 3 | . 3 Average Overweight (x) . | . . Largest Inventory Capacity 10 | 8 10 Average Capacity 9 | 6 9 Most Carried 10 | 4 10 Average Carried 7 | 1 7 Final Capacity 10 | 8 10 Final Carried 7 | 2 7 Class Distribution -------------------- 100% | Mutant Dominant Class ---------------- Mutant | -10/Materials Resources | -11 -10 ----------- Run | Yrd Mat Matter Collected 645 | 260 385 Remotely 276 | 195 81 Salvage Created 634 | 65 569 Parts 31 | 1 30 Haulers Intercepted 2 | . 2 Recyclers Shooed 4 | . 4 Parts Field Recycled . | . . Retrieved Matter . | . . Parts Self-Destructed . | . . Prevented . | . . Kills | -11 -10 ------- Run | Yrd Mat Combat Hostiles Destroyed 13 | . 13 Guns 5 | . 5 Cannons 8 | . 8 Classes Destroyed 6 | 1 5 Hauler 2 | . 2 Recycler 2 | 1 1 Watcher 3 | . 3 Swarmer 5 | . 5 Grunt 7 | . 7 Subdweller 1 | . 1 Best Kill Streak 4 | 1 4 Combat Bots Only 3 | . 3 Max Kills in Single Turn 1 | 1 1 Gunslinging . | . . Exploded . | . . Melee . | . . Uniques/NPCs Destroyed . | . . Combat | -11 -10 -------- Run | Yrd Mat Hostile Shots Fired 98 | . 98 Missed 30 | . 30 Damage Taken 1183 | . 1183 Core 257 | . 257 Absorbed by Shields . | . . Core Remaining (%) 100 | 100 . Volleys Fired 87 | 4 83 Largest 2 | 1 2 Hottest 120 | 50 120 Shots Fired 153 | 4 149 Gun 81 | 4 77 Cannon 64 | . 64 Launcher . | . . Special 8 | . 8 Kinetic 140 | . 140 Thermal 13 | 4 9 Explosive . | . . Electromagnetic . | . . Robot Hit Streak 8 | 3 8 Robot Miss Streak 6 | . 6 Penetration Max . | . . Secondary Targets . | . . Shots Hit Robots 74 | 3 71 Core Hits 37 | 2 35 Critical Kills . | . . Critical Parts Destroyed . | . . Critical Strikes 5 | . 5 Blast 5 | . 5 Melee Attacks . | . . Impact . | . . Slashing . | . . Piercing . | . . Sneak Attacks . | . . Combat Hostiles . | . . Follow-up Attacks . | . . Damage Inflicted 1075 | 37 1038 Guns 419 | 37 382 Cannons 636 | . 636 Explosions . | . . Melee . | . . Ramming 20 | . 20 Kinetic 1018 | . 1018 Thermal 37 | 37 . Explosive . | . . Electromagnetic . | . . Impact . | . . Slashing . | . . Piercing . | . . Highest Corruption 3 | . 3 Average Corruption 3 | . 3 Corruption Purged . | . . Corruption Blocked . | . . Effects 2 | . 2 Energy Discharges 1 | . 1 Data Loss (minor) 1 | . 1 Overload Shots . | . . Overflow Damage . | . . Projectiles . | . . Explosions . | . . Melee . | . . Knockbacks 8 | . 8 Impact . | . . Kinetic 7 | . 7 Secondary 1 | . 1 Self-Inflicted Damage . | . . Shots . | . . Rammed 8 | . 8 Targets Rammed 8 | . 8 Kicked . | . . Crushed . | . . Highest Temperature 153 | . 153 Average Temperature 44 | . 44 Received Heat Transfer 240 | . 240 Siege Activations . | . . Robots Corrupted . | . . Combat Hostiles . | . . Parts Fried . | . . Impact Corruptions . | . . Robots Melted . | . . Combat Hostiles . | . . Parts Melted 1 | 1 . Heat Transferred 111 | 111 . Parts Sabotaged . | . . Parts Stolen . | . . Parts Stripped . | . . Power Chain Reactions . | . . Alert | -11 -10 ------- Run | Yrd Mat Peak Influence 228 | 5 228 Initial 3 | . 3 Average 61 | 3 65 Maximum Alert Level 1 | . 1 Low Security (%) 96 | 100 96 Level 1 3 | . 3 Level 2 . | . . Level 3 . | . . Level 4 . | . . Level 5 . | . . High Security . | . . Max Security . | . . Squads Dispatched 2 | . 2 Investigation . | . . Extermination . | . . Reinforcement 2 | . 2 Assault . | . . Garrison . | . . Intercept . | . . Searches Triggered . | . . Construction Impeded . | . . Haulers Reinforced . | . . Active Scanning Responses . | . . Cargo Convoy Interrupts . | . . Stealth | -11 -10 --------- Run | Yrd Mat Distress Signals 1 | . 1 Communications Jammed . | . . Distress Signals . | . . Times Spotted 22 | . 22 Peak Tracking Total 5 | . 5 Tactical Retreats 1 | . 1 Traps | -11 -10 ------- Run | Yrd Mat Traps Triggered 4 | . 4 Indirectly . | . . Trap Hack Attempts . | . . Triggered . | . . Disarmed . | . . Reprogrammed . | . . Reused . | . . Traps Extracted . | . . Installed . | . . Triggered . | . . Machines | -11 -10 ---------- Run | Yrd Mat Machines Disabled 3 | . 3 Max in Single Turn 1 | . 1 Machines Repaired . | . . Machines Dismantled . | . . Machines Sabotaged . | . . Overloaded Fab Kills . | . . Hacking | -11 -10 --------- Run | Yrd Mat Machines Accessed 1 | . 1 Terminals 1 | . 1 Fabricators . | . . Repair Stations . | . . Recycling Units . | . . Scanalyzers . | . . Garrison Access . | . . Total Hacks 2 | . 2 Successful 1 | . 1 Failed 1 | . 1 Catastrophic . | . . Database Lockouts . | . . Manual . | . . Terminals 2 | . 2 Fabricators . | . . Repair Stations . | . . Recycling Units . | . . Scanalyzers . | . . Garrison Access . | . . Terminal Hacks 1 | . 1 Prototype ID Bank 1 | . 1 Fabricator Hacks . | . . Repair Station Hacks . | . . Recycling Unit Hacks . | . . Scanalyzer . | . . Garrison Access Hacks . | . . Unauthorized Hacks . | . . Terminals . | . . Fabricators . | . . Repair Stations . | . . Recycling Units . | . . Scanalyzers . | . . Garrison Access . | . . Data Cores Recovered . | . . Used . | . . Hacking Detections 1 | . 1 Full Trace Events . | . . Feedback Events . | . . Feedback Blocked . | . . Robot Schematics Acquired . | . . Robots Built . | . . Authchips . | . . Time . | . . Total Robot Build Rating . | . . Part Schematics Acquired . | . . Parts Built . | . . Authchips . | . . Time . | . . Total Part Build Rating . | . . Parts Repaired . | . . Time . | . . Parts Recycled . | . . Recycled Matter . | . . Retrieved Matter . | . . Retrieved Components . | . . Parts Scanalyzed . | . . Part Schematics Acquired . | . . Parts Damaged . | . . Bothacking | -11 -10 ------------ Run | Yrd Mat Used RIF Installer . | . . Robots Hacked . | . . Non-combat . | . . Combat . | . . Robot Hacks Applied . | . . Relay Couplers Released . | . . Fabnet Peak Effective % . | . . Robots Rewired . | . . Allies Hacked . | . . Hacks Repelled . | . . Allies | -11 -10 -------- Run | Yrd Mat Total Allies . | . . Largest Group . | . . Highest-Rated Group . | . . Highest-Rated Ally . | . . Total Orders . | . . Ally Attacks . | . . Total Damage . | . . Kills . | . . Allies Corrupted . | . . Allies Melted . | . . Intel | -11 -10 ------- Run | Yrd Mat Robot Analysis Total . | . . Derelict Logs Recovered . | . . Drone Launches . | . . Drone Recoveries . | . . Exploration | -11 -10 ------------- Run | Yrd Mat Turns Passed 1176 | 73 1103 Spaces Moved 536 | 37 499 Core 13 | 6 7 Treads 523 | 31 492 Legs . | . . Wheels . | . . Hover . | . . Flight . | . . Fastest Speed 50 | 50 160 Average Speed 159 | 142 160 Slowest Speed 200 | 160 200 Overloaded Moves . | . . Propulsion Burnouts . | . . Robots Hopped . | . . Cave-ins Triggered 1 | . 1 Exploration Rate (%) 37 | 4 70 Regions Visited 1 Branch Regions . Pre-discovered Areas . | . . Known Exits Taken . | . . Unknown Exits Taken 1 | 1 . Scrap Searched . | . . Spaces Dug 6 | . 6 Terrain Destroyed 6 | . 6 Melee . | . . Projectile 6 | . 6 AOE . | . . Terrain Rammed . | . . Walls Destroyed . | . . Machines Disabled . | . . Actions | -11 -10 --------- Run | Yrd Mat Total 689 | 54 635 Wait . | . . Move 535 | 36 499 Hop . | . . Pick Up 30 | 8 22 Fast Attach . | . . Attach 16 | 6 10 Detach . | . . Swap 6 | . 6 Drop 7 | . 7 Fire 87 | 4 83 Melee . | . . Ram . | . . Kick . | . . Crush 8 | . 8 Escape Stasis . | . . Rewire . | . . Trap . | . . Miscellaneous . | . . Route ------- -11/Scrapyard -10/Materials (discovered 2 exits: [*Mat] / [*Min]) History --------- Turn | Location | Event 6 | -11/Scrapyard | Discovered new exit (range 15) 74 | -11/Scrapyard | Entered Materials 313 | -10/Materials | Build established: Mutant 485 | -10/Materials | Discovered new exit (range 10) 839 | -10/Materials | Discovered new exit (range 8) 992 | -10/Materials | Crushed by falling debris 1100 | -10/Materials | Derelicts attacked the area 1154 | -10/Materials | Core integrity fell below 50% 1172 | -10/Materials | Core integrity fell below 20% 1177 | -10/Materials | Destroyed by S-10 Pest with Light Assault Rifle Last Messages --------------- patrols to target area. G-34 Mercenary destroyed. G-34 Mercenary Sml. Laser blasted off. S-10 Pest destroyed. Atomic Centrifuge disabled. G-34 Mercenary suffers critical hit (Blast). G-34 Mercenary destroyed. Critical hit (Burn: +37). Med. Armor Plating destroyed. Lgt. Treads destroyed. G-47 Trooper Particle Gun blasted off. G-47 Trooper destroyed. Ion Engine destroyed. S-10 Pest destroyed. O-16 Technician destroyed. G-34 Mercenary destroyed. Assault Rifle destroyed. Lgt. Cannon destroyed. 19-1EG(R) destroyed. Terminal disabled. Map ----- +----------------------------------------------------+ | ????????????????????????????????? | | ????????????????????????????????? | | ????????????????????????????????? | | ????????????????????????????????? | | ????????????????????????????????? | | ????????????? ?????????????????? | | ????????????? ?????????????????? | | ????????????? ?????????????????? | | ????????????+ #????????????????? | | ????????????# #????????????????? | | ????????????# #????????????????? | | ????????????# #????????????????? | | ????????????# #????????????????? | | ????????????# ##???????######### | | ????????????# ????????# | | ????????????# ????????# | | ?????#??????# #????????# | | ?????# ????# #????????# % ! | | ?????# ??+ #????????# [ ! | | ?????# # ########## " " """ | | ?????# + + """ """ | | ??????#######+########### """ """ | | ??????# !%R%* #???######### | | ??????# =%= % #????????# | | ??????# =%[""" """ #????????# | | ??????# @ [*[% """ #????????# | | ??????# *[=%""%""" #????????## | | ??????# =[%=s[= #?????????### | | ??????#;#########+###?????????# # | | ??????##????????? ??????????# | | ????????????????? ??????????### | | ?????????????????? ??????#####"# | | ??????????????????? ??????# | | ??????????????????????????# ! | | ??????????????????????????# | | ???????###########????##### """ | | ???????# ###### # """ | | ???????# + + """ | | ???????# ! """ ###### # | | ???????# """""#????# # """ | | ???????# """""###### # """ | | ???????# """""# # """ | | ???????# """ # # | | ???????# + ####### | | ?################# """ ####### | | ?# ########## """ ## | | ?# # """ ## """ | | ?# # # "Y" | | ?# # + " " | | ?# [ + "T" # | +----------------------------------------------------+ Best States ------------- Heat Dissipation 25 Energy Generation 14 Energy Capacity 250 Matter Stores 300 Matter Capacity 300 Sight Range 16 Robot Scan Range 14 Terrain Scan Density 10 Armor Coverage 225 Evasion (%) 40 Recoil Reduction 2 Item Schematics ----------------- None Robot Schematics ------------------ None Fabricated ------------ Nothing Alien Tech Used ----------------- None Achievements -------------- Use The Force Challenges ------------ None Game ------ Seed MetafiberRegenerativeNetwork Manual? 0 Play Time 00:11:52 Cumulative 9.1 hours Start 2024.04.09 @ 16:39:55 End 2024.04.09 @ 16:51:36 Sessions 1 Manual Loads 0 Difficulty Rogue Special Mode None Game No. 13 Rogue 13 Adventurer 0 Explorer 0 Win Type - Total 0 Types 0/0/0/0/0/0/0/0/0 Lore% 10 Gallery% 11 Achievement% 12 Wizard Run 0 Options --------- Layout 1 ASCII 0 Keyboard 0 Movement Mouse Keybinds 0 Fullscreen 1 Font 16/SmallcapsGlow Map View 55x38 Zoom Use 0% Tactical HUD 0 Map Filters NONE Filters NONE Steam 1 RUN: d49a54e2-621b-467d-ad1c-ac69defd59a5